bitfinex/quotes_SOLUSD_20260222
["timestamp","ask_amount","ask_price","bid_price","bid_amount"]
[1771784607741,30.05747759,83.174,83.151,0.65926103]
[1771784607742,0.66683327,83.172,83.151,0.65926103]
[1771784613834,12.02342162,83.171,83.151,0.65926103]
[1771784614021,0.66683327,83.17,83.151,0.65926103]
[1771784616845,0.66683327,83.168,83.151,0.65926103]
[1771784617241,0.66683327,83.168,83.143,0.65926103]
[1771784617440,0.66683327,83.168,83.135,0.65926103]
[1771784619550,42.08298764,83.169,83.141,0.67045586]
[1771784619551,0.67062355,83.166,83.141,0.67045586]
[1771784622536,12.02428906,83.165,83.141,0.67045586]
[1771784622852,0.67062355,83.164,83.141,0.67045586]
[1771784626167,0.67062355,83.162,83.141,0.67045586]
[1771784628447,0.67062355,83.16,83.141,0.67045586]
[1771784635864,12.02486742,83.161,83.141,0.67045586]
[1771784636757,0.67062355,83.161,83.141,0.67045586]
[1771784638468,12.69563557,83.16,83.141,0.67045586]
[1771784638773,0.67062355,83.159,83.141,0.67045586]
[1771784640956,0.67062355,83.157,83.14,3.11439446]
[1771784641157,0.67062355,83.157,83.141,0.67045586]
[1771784645676,0.67062355,83.157,83.136,0.67045586]
[1771784649376,0.652596,83.161,83.141,0.67516233]
[1771784653777,0.652596,83.159,83.141,0.67516233]
[1771784657006,0.63111322,83.175,83.151,0.6732523]
[1771784658988,0.63111322,83.173,83.151,0.6732523]
[1771784660493,0.63111322,83.171,83.151,0.6732523]
[1771784663590,12.02356618,83.17,83.151,0.6732523]
[1771784663790,0.63111322,83.169,83.151,0.6732523]
[1771784668119,12.02385532,83.168,83.151,0.6732523]
[1771784668409,0.63111322,83.167,83.151,0.6732523]
[1771784668909,0.63111322,83.167,83.141,0.6732523]
[1771784675311,0.63111322,83.165,83.141,0.6732523]
[1771784679102,12.02443364,83.164,83.141,0.6732523]
[1771784681513,0.66303667,83.163,83.141,0.6732523]
[1771784686517,12.02168712,83.183,83.151,0.64268508]
[1771784688518,0.66303667,83.18,83.151,0.64268508]
[1771784691621,0.66303667,83.178,83.144,0.64268508]
[1771784691924,0.66303667,83.178,83.145,0.64268508]
[1771784694722,0.66303667,83.176,83.145,0.64268508]
[1771784695221,0.66303667,83.176,83.132,43.66303997]
[1771784695222,0.66303667,83.169,83.132,0.64268508]
[1771784698826,0.66303667,83.167,83.132,0.64268508]
[1771784700236,0.66303667,83.167,83.141,0.64268508]
[1771784700437,12.02168712,83.183,83.16,3.75801359]
[1771784700931,3.69383402,83.194,83.161,0.64268508]
[1771784701228,0.28432314,83.193,83.161,0.64268508]
[1771784701430,3.69383402,83.194,83.161,0.64268508]
[1771784701720,0.14216157,83.193,83.161,0.64268508]
[1771784702122,3.11532851,83.19,83.151,0.64268508]
[1771784702327,0.38186742,83.189,83.151,0.64268508]
[1771784703212,0.38255396,83.187,83.151,0.64268508]
[1771784707035,0.38523136,83.185,83.151,0.64268508]
[1771784709438,12.0215426,83.184,83.151,0.64268508]
[1771784709622,0.38714905,83.183,83.151,0.64268508]
[1771784712720,0.38901213,83.181,83.151,0.68895384]
[1771784713839,12.0221207,83.18,83.151,0.68895384]
[1771784714138,0.39006602,83.179,83.151,0.68895384]
[1771784715022,12.0221207,83.18,83.161,0.6726002]
[1771784716443,0.39135623,83.184,83.161,0.6726002]
[1771784718035,12.02168712,83.183,83.161,0.6726002]
[1771784718424,0.3921927,83.194,83.171,0.6726002]
[1771784719539,12.01995312,83.195,83.18,3.11532851]
[1771784719723,12.01995312,83.195,83.181,0.6726002]
[1771784720543,12.01937523,83.199,83.181,0.6726002]
[1771784724340,12.01966417,83.197,83.181,0.6726002]
[1771784724539,0.39460848,83.196,83.181,0.6726002]
[1771784727144,12.01995312,83.195,83.181,0.6726002]
[1771784736456,0.39898382,83.195,83.181,0.6726002]
[1771784739068,12.419703,83.199,83.181,0.6726002]
[1771784739361,12.01966417,83.197,83.181,0.6726002]
[1771784740446,12.01966417,83.197,83.159,12.02508983]
[1771784740447,42.06882459,83.197,83.159,12.02508983]
[1771784740758,0.64760677,83.196,83.17,3.11532851]
[1771784742362,12.01995312,83.195,83.17,3.11532851]
[1771784742564,0.64760677,83.194,83.171,0.6344725]
[1771784744461,12.66784885,83.193,83.171,0.6344725]
[1771784745459,0.64760677,83.197,83.171,0.6344725]
[1771784749578,0.2,83.2,83.171,0.6344725]
[1771784749579,0.64760677,83.195,83.171,0.6344725]
[1771784751677,0.64760677,83.193,83.171,0.6344725]
[1771784753374,0.64760677,83.198,83.171,0.6344725]
[1771784753871,0.2,83.2,83.181,0.6344725]
[1771784754061,0.64760677,83.212,83.191,0.6344725]
[1771784760386,0.64760677,83.219,83.201,0.6344725]
[1771784767994,0.64760677,83.219,83.186,0.6344725]
[1771784768182,0.64450652,83.217,83.181,0.68405646]
[1771784770684,12.01691982,83.216,83.181,0.68405646]
[1771784770885,0.64450652,83.215,83.181,0.68405646]
[1771784771994,0.64450652,83.213,83.181,0.68405646]
[1771784777791,12.01749747,83.212,83.181,0.68405646]
[1771784777995,0.68312115,83.211,83.181,0.68405646]
[1771784778195,0.68312115,83.211,83.18,3.11053013]
[1771784778399,0.68312115,83.209,83.172,0.66569232]
[1771784780183,0.68312115,83.207,83.17,3.11053013]
[1771784780384,0.68312115,83.207,83.168,0.66569232]
[1771784780596,0.68312115,83.207,83.15,43.66303997]
[1771784780597,0.68312115,83.199,83.161,0.66569232]
[1771784780788,0.68312115,83.189,83.156,12.69127249]
[1771784780997,0.68312115,83.189,83.157,0.66569232]
[1771784781382,0.68312115,83.189,83.151,0.66569232]
[1771784783800,0.68312115,83.187,83.151,0.66569232]
[1771784786684,0.68312115,83.185,83.151,0.66569232]
[1771784788485,0.68312115,83.183,83.151,0.66569232]
[1771784790006,0.68312115,83.181,83.151,0.66569232]
[1771784790204,0.68312115,83.169,83.131,0.66569232]
[1771784791213,0.68312115,83.167,83.131,0.66569232]
[1771784794005,0.68312115,83.165,83.131,0.66569232]
[1771784795405,0.68312115,83.163,83.131,0.66569232]
[1771784798791,30.05934922,83.169,83.131,0.66569232]
[1771784798792,0.68102065,83.161,83.131,0.66569232]
[1771784801214,12.02501202,83.16,83.131,0.66569232]
[1771784801509,12.02501202,83.16,83.13,3.11053013]
[1771784801510,12.02425284,83.166,83.141,0.7038902]
[1771784804522,0.41134254,83.171,83.141,0.7038902]
[1771784806518,12.02356618,83.17,83.151,0.7038902]
[1771784806712,0.41204503,83.169,83.151,0.7038902]
[1771784809524,12.02385532,83.168,83.151,0.7038902]
[1771784813721,0.41439217,83.174,83.151,0.7038902]
[1771784816127,12.43846013,83.173,83.151,0.7038902]
[1771784816713,3.69383402,83.188,83.151,0.7038902]
[1771784816714,0.41532763,83.187,83.151,0.7038902]
[1771784819233,12.02125357,83.186,83.151,0.7038902]
[1771784819417,0.41624472,83.185,83.151,0.7038902]
[1771784821434,0.41684242,83.183,83.151,0.7038902]
[1771784826927,12.02183164,83.182,83.152,12.02616894]
[1771784827123,12.02183164,83.182,83.153,0.7038902]
[1771784827535,12.44033807,83.182,83.153,0.7038902]
[1771784827719,12.02183164,83.182,83.153,0.7038902]
[1771784827920,0.41850643,83.181,83.153,0.7038902]
[1771784833439,12.0221207,83.18,83.153,0.7038902]
[1771784834334,12.4417574,83.18,83.153,0.7038902]
[1771784840958,0.41439621,83.185,83.16,3.11339006]
[1771784841253,12.02132147,83.186,83.161,0.66506179]
[1771784841858,12.43509474,83.186,83.161,0.66506179]
[1771784845961,0.41134338,83.185,83.161,0.66506179]
[1771784851266,12.43275386,83.185,83.161,0.66506179]
[1771784851868,12.02085028,83.189,83.162,12.02472283]
[1771784852057,0.40790719,83.208,83.171,0.66506179]
[1771784853174,0.40735727,83.207,83.171,0.66506179]
[1771784854663,12.01836406,83.206,83.171,0.66506179]
[1771784854869,0.40680567,83.205,83.171,0.66506179]
[1771784856978,0.4052111,83.203,83.171,0.66506179]
[1771784859259,0.40366465,83.201,83.171,0.66506179]
[1771784860367,0.40316377,83.199,83.171,0.66506179]
[1771784862777,0.40217637,83.197,83.171,0.66506179]
[1771784863357,0.40170091,83.189,83.154,0.63875163]
[1771784864572,0.40122311,83.187,83.154,0.63875163]
[1771784868684,0.39934923,83.185,83.154,0.63875163]
[1771784871406,12.0215426,83.184,83.154,0.63875163]
[1771784871576,0.39800212,83.183,83.154,0.63875163]
[1771784873693,0.39713356,83.181,83.154,0.63875163]
[1771784874494,0.39670647,83.179,83.154,0.63875163]
[1771784879297,0.39462707,83.177,83.154,0.63875163]
[1771784880298,12.02269885,83.176,83.154,0.63875163]
[1771784880499,12.41692767,83.176,83.154,0.63875163]
[1771784883318,0.39306011,83.175,83.154,0.63875163]
[1771784892220,0.3894397,83.173,83.141,0.64298282]
[1771784892403,0.3894397,83.169,83.141,0.64298282]
[1771784895520,0.38649547,83.167,83.137,0.65734284]
[1771784899322,42.08450568,83.166,83.137,0.65734284]
[1771784899619,42.08450568,83.166,83.118,30.07751846]
[1771784899620,0.38316928,83.159,83.124,0.65734284]
[1771784899813,0.38316928,83.149,83.124,0.65734284]
[1771784900927,0.38155552,83.147,83.12,0.65734284]
[1771784901119,0.38155552,83.147,83.091,43.66303997]
[1771784901120,0.38155552,83.139,83.109,0.65734284]
[1771784901821,0.38155552,83.129,83.096,0.65734284]
[1771784903222,12.02964103,83.128,83.096,0.65734284]
[1771784903419,0.37998331,83.127,83.096,0.65734284]
[1771784904806,3.11346012,83.16,83.09,0.1]
[1771784904807,0.3792054,83.109,83.09,0.1]
[1771784905013,0.37844536,83.122,83.091,0.65734284]
[1771784905523,0.37844536,83.119,83.091,0.65734284]
[1771784907315,0.37695377,83.117,83.091,0.65734284]
[1771784909718,0.37549458,83.115,83.091,0.65734284]
[1771784911431,0.37407772,83.113,83.091,0.65734284]
[1771784913217,12.03195687,83.112,83.091,0.65734284]
[1771784914015,0.37199166,83.111,83.091,0.65734284]
[1771784915518,12.40356164,83.11,83.091,0.65734284]
[1771784917816,0.36998436,83.109,83.091,0.65734284]
[1771784918628,0.36998436,83.109,83.09,0.1]
[1771784919026,0.36804482,83.107,83.073,0.68734263]
[1771784919327,0.36804482,83.099,83.073,0.68734263]
[1771784921431,0.36677763,83.097,83.073,0.68734263]
[1771784924240,0.36494417,83.095,83.073,0.68734263]
[1771784925550,0.36434104,83.125,83.081,0.68734263]
[1771784925752,0.36434104,83.125,83.091,0.68734263]
[1771784925956,0.36374218,83.123,83.091,0.68734263]
[1771784926438,0.28432314,83.124,83.091,0.68734263]
[1771784926439,12.39425155,83.122,83.091,0.68734263]
[1771784926832,12.03050937,83.122,83.101,0.68734263]
[1771784927437,0.36315605,83.121,83.101,0.68734263]
[1771784928637,12.03079884,83.12,83.101,0.68734263]
[1771784934056,0.3592137,83.122,83.101,0.68734263]
[1771784936558,12.0306541,83.121,83.101,0.68734263]
[1771784941571,0.35557957,83.12,83.101,0.68734263]
[1771784943576,0.35460353,83.118,83.101,0.68734263]
[1771784944078,12.03038557,83.123,83.101,0.68734263]
[1771784944676,12.38450879,83.123,83.101,0.68734263]
[1771784944973,12.03038557,83.123,83.101,0.68734263]
[1771784945160,12.38403282,83.123,83.101,0.68734263]
[1771784945361,0.35364725,83.122,83.101,0.68734263]
[1771784947694,12.0306541,83.121,83.101,0.68734263]
[1771784948496,0.35180037,83.12,83.091,0.65716851]
[1771784953206,0.34960703,83.118,83.091,0.65716851]
[1771784957210,0.342517,83.116,83.091,0.65716851]
[1771784961615,12.03152258,83.115,83.091,0.65716851]
[1771784961813,0.33713231,83.114,83.091,0.65716851]
[1771784971220,0.32469284,83.118,83.091,0.65716851]
[1771784977027,0.31789654,83.116,83.091,0.65716851]
[1771784982825,12.03152258,83.115,83.091,0.65716851]
[1771784983227,12.34205855,83.115,83.091,0.65716851]
[1771784988348,0.30562044,83.119,83.091,0.65716851]
[1771784993843,12.33206932,83.118,83.091,0.65716851]
[1771784994730,0.30008816,83.117,83.091,0.65716851]
[1771784994932,12.02833876,83.137,83.111,0.65860707]
[1771784995133,12.02833876,83.137,83.121,0.65860707]
[1771784995836,5.36086188,83.176,83.12,3.1181469]
[1771784995837,0.298327,83.168,83.131,0.65860707]
[1771784996040,0.64049537,83.159,83.12,3.1181469]
[1771784997054,42.08298764,83.169,83.12,3.1181469]
[1771784997055,0.64049537,83.157,83.12,3.1181469]
[1771784998056,0.64049537,83.155,83.121,0.65860707]
[1771784998238,0.2,83.21,83.151,0.65860707]
[1771784998436,62.52855897,83.192,83.18,5.47e-06]
[1771784998641,0.2,83.21,83.181,0.28432314]
[1771784998988,0.2,83.23,83.201,0.28432314]
[1771784999134,0.2,83.23,83.21,3.1181469]
[1771785000354,0.65265788,83.219,83.17,3.1181469]
[1771785000537,0.65265788,83.219,83.17,3.40247004]
[1771785001056,0.65265788,83.219,83.18,3.1181469]
[1771785001231,0.65265788,83.219,83.18,3.11150778]
[1771785004155,0.65265788,83.217,83.18,3.11150778]
[1771785005852,0.65265788,83.209,83.16,3.11150778]
[1771785006247,3.11150778,83.21,83.16,3.11150778]
[1771785006248,0.65265788,83.207,83.16,3.11150778]
[1771785006964,0.65265788,83.207,83.17,3.11150778]
[1771785007863,0.65265788,83.205,83.17,3.11150778]
[1771785008366,0.65265788,83.205,83.18,3.11150778]
[1771785008667,0.65265788,83.205,83.17,3.11150778]
[1771785010248,0.65265788,83.203,83.16,3.11150778]
[1771785011369,0.65265788,83.201,83.16,3.11150778]
[1771785012066,0.65265788,83.201,83.16,46.77454775]
[1771785012264,0.65265788,83.201,83.16,43.66303997]
[1771785013647,0.65265788,83.199,83.161,12.02486742]
[1771785015966,12.01951969,83.198,83.161,12.02486742]
[1771785016167,0.65265788,83.197,83.161,12.02486742]
[1771785017970,12.67246652,83.196,83.161,55.68790739]
[1771785018176,0.65265788,83.195,83.161,55.68790739]
[1771785019355,12.67275548,83.194,83.161,55.68790739]
[1771785020173,0.65265788,83.193,83.161,55.68790739]
[1771785021380,0.65265788,83.191,83.161,12.02486742]
[1771785021877,0.65265788,83.191,83.162,0.02038632]
[1771785026884,0.65265788,83.189,83.162,0.02038632]
[1771785028077,12.67362244,83.188,83.162,0.02038632]
[1771785029182,0.65265788,83.187,83.162,0.02038632]
[1771785030185,0.65265788,83.187,83.162,0.02551702]
[1771785031686,0.65265788,83.185,83.161,43.66303997]
[1771785032668,0.65265788,83.185,83.16,0.02674734]
[1771785034387,0.65265788,83.183,83.16,0.02674734]
[1771785035986,12.02183164,83.182,83.16,0.02674734]
[1771785036377,12.67448952,83.182,83.16,0.02674734]
[1771785037290,0.65265788,83.181,83.16,0.02674734]
[1771785040189,0.65265788,83.181,83.143,0.03191695]
[1771785040394,0.65745944,83.179,83.151,0.03191695]
[1771785042392,0.65745944,83.179,83.152,0.03299005]
[1771785050308,0.65745944,83.177,83.147,0.03707527]
[1771785052014,0.65745944,83.175,83.147,0.03707527]
[1771785054205,0.65745944,83.173,83.147,0.03707527]
[1771785067607,0.65745944,83.171,83.139,0.04458611]
[1771785067919,0.65745944,83.171,83.141,0.04498605]
[1771785068919,0.65745944,83.171,83.142,0.04576298]
[1771785077521,0.65265788,83.169,83.141,43.66303997]
[1771785077726,0.65265788,83.169,83.137,12.02829696]
[1771785079222,0.65265788,83.167,83.133,0.04715104]
[1771785080923,0.65265788,83.175,83.133,0.04715104]
[1771785081116,3.69383402,83.202,83.125,42.10526314]
[1771785081117,0.65265788,83.18,83.138,0.04706382]
[1771785081515,0.65265788,83.18,83.141,0.04706382]
[1771785084328,0.65265788,83.18,83.142,0.28432314]
[1771785084529,0.65265788,83.18,83.143,0.04699775]
[1771785086834,0.65265788,83.18,83.145,0.04695382]
[1771785087526,0.65265788,83.178,83.145,0.04695382]
[1771785090416,0.65265788,83.176,83.145,0.04695382]
[1771785097622,0.65265788,83.174,83.135,42.10019846]
[1771785098239,0.65265788,83.174,83.135,42.14691461]
[1771785098643,0.65265788,83.174,83.136,0.04671615]
[1771785099137,0.66508147,83.172,83.136,0.04671615]
[1771785102245,0.66508147,83.17,83.136,0.04671615]
[1771785104849,0.66508147,83.168,83.136,0.04671615]
[1771785108856,0.66508147,83.168,83.138,0.04656627]
[1771785114651,0.66508147,83.168,83.141,0.04649343]
[1771785117553,0.66508147,83.168,83.14,12.02790473]
[1771785117746,0.66508147,83.166,83.13,12.0293417]
[1771785118755,0.66508147,83.164,83.123,0.04645218]
[1771785122670,0.66508147,83.162,83.123,0.04645218]
[1771785125376,0.66508147,83.16,83.123,0.04645218]
[1771785127578,0.66508147,83.158,83.12,12.03079884]
[1771785128256,0.66508147,83.158,83.121,0.04635613]
[1771785131677,0.65265788,83.156,83.121,0.04635613]
[1771785135086,12.02573507,83.155,83.121,0.04635613]
[1771785135382,0.6676858,83.154,83.121,0.04635613]
[1771785137571,0.6676858,83.149,83.111,0.04225656]
[1771785139593,0.6676858,83.148,83.111,0.04225656]
[1771785141388,0.6676858,83.148,83.085,0.03918083]
[1771785141619,0.6676858,83.137,83.088,0.03918083]
[1771785141883,0.6676858,83.137,83.089,0.03918083]
[1771785145480,0.6676858,83.137,83.091,0.03624778]
[1771785146488,12.02848344,83.136,83.091,0.03624778]
[1771785146795,0.6676858,83.135,83.092,43.66303997]
[1771785146979,0.6676858,83.135,83.093,0.03553585]
[1771785148784,0.6676858,83.135,83.094,0.03413522]
[1771785148992,0.6676858,83.133,83.094,0.03413522]
[1771785151683,3.11484487,83.13,83.094,0.03413522]
[1771785151887,0.6676858,83.129,83.093,42.12147833]
[1771785153874,0.6676858,83.127,83.093,30.11753856]
[1771785154376,0.6676858,83.127,83.093,30.08677024]
[1771785154582,0.6676858,83.127,83.094,0.0301294]
[1771785158702,12.68898365,83.126,83.094,0.0301294]
[1771785159191,0.65905319,83.125,83.094,0.0301294]
[1771785160503,0.65905319,83.119,83.087,12.03557716]
[1771785160799,0.65905319,83.109,83.072,0.02578057]
[1771785161795,3.11484487,83.11,83.072,0.02578057]
[1771785161796,0.65905319,83.107,83.072,0.02578057]
[1771785164880,0.65905319,83.105,83.072,0.02578057]
[1771785167795,0.65905319,83.129,83.072,0.02578057]
[1771785169682,0.65905319,83.127,83.072,0.02578057]
[1771785170295,0.65905319,83.127,83.074,0.02015597]
[1771785175389,0.65905319,83.125,83.075,43.94736311]
[1771785176095,0.65905319,83.125,83.074,42.13111201]
[1771785176096,0.65905319,83.125,83.077,0.28432314]
[1771785176302,0.65905319,83.136,83.077,0.28432314]
[1771785176502,0.65905319,83.136,83.079,0.28432314]
[1771785179618,0.65905319,83.134,83.081,0.28432314]
[1771785181911,0.65905319,83.134,83.082,85.79009516]
[1771785182100,0.65905319,83.134,83.083,0.28432314]
[1771785182502,0.65905319,83.132,83.083,0.28432314]
[1771785182701,0.65905319,83.132,83.082,85.79009516]
[1771785184011,0.65905319,83.129,83.082,85.79009516]
[1771785185115,0.65905319,83.149,83.083,0.28432314]
[1771785186102,0.65905319,83.148,83.085,0.28432314]
[1771785187217,0.65905319,83.146,83.087,0.28432314]
[1771785187910,0.65905319,83.146,83.089,0.28432314]
[1771785189736,0.65265788,83.144,83.091,0.28432314]
[1771785192227,0.65265788,83.142,83.092,12.03485293]
[1771785192414,0.65265788,83.142,83.092,42.12198526]
[1771785193507,0.65265788,83.14,83.092,42.12198526]
[1771785193714,0.65265788,83.14,83.093,43.66303997]
[1771785195624,0.65265788,83.138,83.094,12.03456326]
[1771785195830,0.65265788,83.138,83.095,43.66303997]
[1771785199523,0.65265788,83.136,83.082,30.09056652]
[1771785200729,0.65265788,83.134,83.082,30.09056652]
[1771785205538,0.65265788,83.132,83.084,42.1260411]
[1771785210330,104.7,83.193,83.085,43.94736311]
[1771785210532,0.65265788,83.16,83.087,0.28432314]
[1771785210924,0.65265788,83.16,83.12,3.11578314]
[1771785213629,0.65265788,83.158,83.12,3.11578314]
[1771785213835,0.65265788,83.158,83.112,12.03185132]
[1771785220047,0.65265788,83.156,83.11,3.11578314]
[1771785223259,0.65265788,83.154,83.12,3.11578314]
[1771785225852,12.02602431,83.153,83.12,3.11578314]
[1771785226153,0.65265788,83.152,83.12,3.11578314]
[1771785228560,0.65265788,83.15,83.11,3.11578314]
[1771785230759,0.65265788,83.148,83.103,12.03325993]
[1771785234671,0.65265788,83.146,83.103,12.03325993]
[1771785236956,0.65265788,83.144,83.11,3.11578314]
[1771785240770,0.65265788,83.142,83.11,3.11578314]
[1771785241147,0.65265788,83.152,83.13,3.11578314]
[1771785241578,0.65265788,83.152,83.12,3.11578314]
[1771785242556,0.65265788,83.15,83.11,3.11578314]
[1771785245364,0.65265788,83.148,83.11,3.11644936]
[1771785250801,0.65265788,83.146,83.11,3.11644936]
[1771785251696,0.65265788,83.146,83.12,3.11644936]
[1771785254504,0.65265788,83.144,83.12,3.11644936]
[1771785261409,12.68012862,83.143,83.12,3.11644936]
[1771785261809,0.65265788,83.142,83.12,3.11644936]
[1771785264225,0.65265788,83.165,83.13,3.11644936]
[1771785269793,0.65265788,83.163,83.14,3.11644936]
[1771785271913,0.65265788,83.161,83.13,3.11644936]
[1771785275719,0.65265788,83.159,83.13,3.11644936]
[1771785277105,0.65265788,83.159,83.12,3.11644936]
[1771785277309,0.65265788,83.159,83.11,46.77948933]
[1771785277501,0.65265788,83.159,83.11,3.11644936]
[1771785278525,0.65265788,83.157,83.113,12.03176581]
[1771785281532,12.02559045,83.156,83.113,12.03176581]
[1771785281712,0.65265788,83.155,83.113,12.03176581]
[1771785283921,0.65265788,83.153,83.12,3.11644936]
[1771785287435,0.65265788,83.151,83.12,3.11644936]
[1771785290336,0.65265788,83.149,83.121,12.0306541]
[1771785291132,0.65265788,83.149,83.12,3.11644936]
[1771785292432,12.0264582,83.15,83.13,3.11644936]
[1771785292640,0.65265788,83.155,83.13,3.11644936]
[1771785294938,0.65265788,83.153,83.12,3.11644936]
[1771785296239,0.65265788,83.151,83.12,3.11644936]
[1771785298128,11.59244882,83.152,83.121,0.60459256]
[1771785298619,42.36731078,83.169,83.122,0.60459256]
[1771785298823,42.08298764,83.169,83.131,0.60459256]
[1771785299336,12.02371075,83.169,83.141,0.60459256]
[1771785299544,12.02371075,83.169,83.15,3.11644936]
[1771785299732,12.02371075,83.169,83.151,0.60459256]
[1771785300127,0.6410311,83.187,83.151,0.60459256]
[1771785300542,0.6410311,83.179,83.13,3.11644936]
[1771785300731,0.6410311,83.157,83.121,0.60459256]
[1771785301728,0.6410311,83.155,83.121,0.60459256]
[1771785302340,0.6410311,83.155,83.123,0.60459256]
[1771785302544,0.6410311,83.155,83.131,0.60459256]
[1771785313835,0.61882696,83.153,83.131,0.60459256]
[1771785319756,3.75676582,83.15,83.098,0.64401698]
[1771785320051,42.09159129,83.152,83.121,0.64401698]
[1771785320052,0.64166493,83.149,83.121,0.64401698]
[1771785321854,12.02674748,83.148,83.121,0.64401698]
[1771785322053,0.64166493,83.147,83.121,0.64401698]
[1771785323353,12.02703677,83.146,83.121,0.64401698]
[1771785323562,0.64166493,83.145,83.121,0.64401698]
[1771785324862,12.02732608,83.144,83.121,0.64401698]
[1771785325064,0.64166493,83.143,83.121,0.64401698]
[1771785330653,0.64166493,83.141,83.121,0.64401698]
[1771785333653,0.64166493,83.139,83.121,0.64401698]
[1771785336182,0.64166493,83.137,83.111,0.64646697]
[1771785338360,12.02848344,83.136,83.111,0.64646697]
[1771785338563,0.64949234,83.135,83.111,0.64646697]
[1771785338767,12.67700835,83.143,83.13,3.11510089]
[1771785340885,12.67700835,83.143,83.128,0.59476058]
[1771785341181,0.64949234,83.142,83.128,0.59476058]
[1771785355882,0.64949234,83.158,83.131,0.59476058]
[1771785360671,0.64949234,83.156,83.131,0.59476058]
[1771785362893,0.64949234,83.154,83.131,0.59476058]
[1771785366393,12.67551665,83.153,83.131,0.59476058]
[1771785366569,0.64949234,83.178,83.141,0.59476058]
[1771785366887,0.64949234,83.177,83.141,0.59476058]
[1771785367088,0.64949234,83.177,83.151,0.59476058]
[1771785367876,0.64949234,83.175,83.151,0.59476058]
[1771785370087,0.6449878,83.173,83.151,0.59476058]
[1771785374280,0.6449878,83.171,83.151,0.59476058]
[1771785409422,0.6285547,83.169,83.151,0.59476058]
[1771785415938,30.05543532,83.18,83.145,0.61085824]
[1771785415939,12.02385532,83.168,83.145,0.61085824]
[1771785416121,0.6285547,83.167,83.145,0.61085824]
[1771785417838,0.6285547,83.167,83.147,0.61085824]
[1771785418538,0.6285547,83.167,83.15,3.11360897]
[1771785419441,0.6285547,83.167,83.147,0.61085824]
[1771785421742,0.6285547,83.167,83.151,0.61085824]
[1771785422339,0.6285547,83.167,83.139,0.61085824]
[1771785422636,0.6285547,83.167,83.133,43.66303997]
[1771785422637,0.6285547,83.165,83.129,0.61085824]
[1771785422830,0.6285547,83.165,83.124,0.61085824]
[1771785423436,0.6285547,83.165,83.13,3.11360897]
[1771785423625,0.6285547,83.165,83.131,0.61085824]
[1771785424537,12.02443364,83.164,83.131,0.61085824]
[1771785424839,0.6285547,83.163,83.131,0.61085824]
[1771785427948,12.02472283,83.162,83.131,0.61085824]
[1771785428148,0.6285547,83.161,83.131,0.61085824]
[1771785431051,0.6285547,83.161,83.141,0.63235736]
[1771785444063,0.6285547,83.161,83.125,12.03007518]
[1771785444267,0.61929083,83.159,83.125,12.03007518]
[1771785445464,0.61929083,83.157,83.126,0.59246985]
[1771785446760,0.61929083,83.155,83.128,0.59246985]
[1771785448163,0.61929083,83.153,83.123,12.03035034]
[1771785448353,0.61929083,83.153,83.123,12.62282019]
[1771785448548,0.61929083,83.153,83.124,0.59246985]
[1771785449448,0.61929083,83.153,83.126,0.59246985]
[1771785450265,0.61929083,83.153,83.13,3.7072153]
[1771785450849,0.61929083,83.153,83.131,0.59246985]
[1771785456067,0.61929083,83.151,83.131,0.59246985]
[1771785456446,0.61929083,83.151,83.126,0.59246985]
[1771785458172,0.61929083,83.151,83.128,0.63685897]
[1771785461877,0.61929083,83.151,83.13,3.11474545]
[1771785462059,0.61929083,83.151,83.13,3.75160442]
[1771785463175,0.61929083,83.151,83.13,0.63685897]
[1771785465067,0.61929083,83.151,83.131,0.63685897]
[1771785465268,0.61929083,83.151,83.127,0.63685897]
[1771785467874,0.61929083,83.151,83.127,12.66654934]
[1771785468484,0.61929083,83.151,83.128,0.63685897]
[1771785473381,0.61929083,83.151,83.11,30.08031641]
[1771785473382,0.60870017,83.158,83.131,0.63685897]
[1771785480496,0.60870017,83.156,83.13,3.11474545]
[1771785480802,0.60870017,83.156,83.127,12.02978574]
[1771785482004,0.60870017,83.156,83.127,12.66664471]
[1771785482500,0.60870017,83.149,83.112,0.63685897]
[1771785482905,0.60870017,83.139,83.103,0.63685897]
[1771785483595,0.60870017,83.129,83.103,0.63685897]
[1771785483794,0.60870017,83.129,83.098,12.03394801]
[1771785483997,0.60870017,83.129,83.099,0.63685897]
[1771785484307,0.60870017,83.129,83.098,12.67080698]
[1771785484504,12.02964103,83.128,83.098,12.67080698]
[1771785484690,0.60870017,83.127,83.099,0.63685897]
[1771785489905,0.60870017,83.127,83.101,0.62666003]
[1771785490224,0.63994422,83.125,83.101,0.62666003]
[1771785491103,0.63994422,83.125,83.103,0.62666003]
[1771785492510,0.65608727,83.147,83.11,3.11746908]
[1771785492716,0.65608727,83.147,83.12,3.11746908]
[1771785493391,0.65608727,83.147,83.11,3.11746908]
[1771785493594,3.11746908,83.15,83.111,12.03210164]
[1771785493595,0.65608727,83.145,83.111,12.03210164]
[1771785496515,0.65608727,83.145,83.11,3.11746908]
[1771785496701,0.65608727,83.139,83.106,12.03270733]
[1771785499530,12.02819408,83.138,83.101,12.03354953]
[1771785499736,0.65608727,83.137,83.101,12.03354953]
[1771785507236,0.65608727,83.135,83.101,12.03354953]
[1771785512921,0.65608727,83.133,83.1,3.11746908]
[1771785514321,3.11746908,83.13,83.09,3.11746908]